bitfinex-derivatives/quotes_SOLF0:USTF0_20241227
["timestamp","ask_amount","ask_price","bid_price","bid_amount"]
[1735298885426,3.2457,191.04,190.99,8.43155894]
[1735298886321,3.2457,191.04,190.97,11.61155894]
[1735298886526,3.2457,191.04,190.96,3.18]
[1735298886527,8.43155894,191.03,190.96,3.18]
[1735298886919,2.621,191.02,190.96,2.6217]
[1735298887120,2.621,191.02,190.95,11.61155894]
[1735298887121,37.28945708,191.02,190.97,8.43155894]
[1735298887324,34.66845708,191.02,190.97,8.43155894]
[1735298888022,58.41581601,191.03,190.95,3.18]
[1735298888023,21.85637214,191.03,191.0,2.6212]
[1735298888926,26.66717214,191.04,191.0,2.6212]
[1735298892329,26.66717214,191.04,190.99,8.43155894]
[1735298892633,26.66717214,191.04,190.99,11.05295894]
[1735298893730,2.6209,191.03,190.98,3.18]
[1735298893932,8.43155894,191.03,190.98,3.18]
[1735298894433,2.6211,191.02,190.98,3.18]
[1735298894734,8.43155894,191.03,190.98,3.18]
[1735298894930,2.6213,191.01,190.96,2.6217]
[1735298895128,8.43155894,191.01,190.95,14.23355894]
[1735298895328,21.85637214,191.0,190.95,14.23355894]
[1735298895529,21.85637214,191.0,190.95,11.61155894]
[1735298895836,8.43155894,190.97,190.91,11.61155894]
[1735298896037,2.622,190.96,190.9,8.43155894]
[1735298896338,2.622,190.96,190.9,11.61155894]
[1735298896837,11.05325894,190.97,190.91,2.6225]
[1735298897240,2.6218,190.96,190.9,11.61155894]
[1735298897431,5.7074,190.96,190.9,11.61155894]
[1735298897832,27.56377214,190.96,190.9,11.61155894]
[1735298898233,24.94197214,190.96,190.9,8.43155894]
[1735298898441,8.43155894,190.95,190.87,5.803]
[1735298898633,8.43155894,190.95,190.88,8.43155894]
[1735298898834,26.50247214,190.96,190.9,8.43155894]
[1735298899447,21.85637214,190.93,190.92,8.43155894]
[1735298899936,21.85637214,190.93,190.92,11.05395894]
[1735298900336,3.0856,190.96,190.92,11.05395894]
[1735298900839,3.0856,190.96,190.93,2.6222]
[1735298903442,3.0856,190.96,190.92,8.43155894]
[1735298904541,3.0856,190.96,190.92,11.05395894]
[1735298906246,3.0856,190.96,190.93,2.6222]
[1735298907947,11.51715894,190.96,190.91,5.8024]
[1735298908147,11.51715894,190.96,190.91,3.18]
[1735298908543,2.6221,190.95,190.91,3.18]
[1735298910355,2.6221,190.95,190.9,2.6226]
[1735298910754,8.43155894,190.94,190.86,2.6231]
[1735298910959,8.43155894,190.94,190.86,11.05465894]
[1735298911150,1.6446,190.95,190.86,11.05465894]
[1735298911151,8.43155894,190.92,190.86,11.05465894]
[1735298911354,8.43155894,190.9,190.84,11.61155894]
[1735298912157,11.05425894,190.9,190.84,11.61155894]
[1735298912656,11.05425894,190.9,190.84,5.8034]
[1735298913154,8.43155894,190.9,190.84,3.18]
[1735298913358,8.43155894,190.9,190.85,2.6233]
[1735298913555,8.43155894,190.9,190.84,3.18]
[1735298914059,8.43155894,190.9,190.85,2.6233]
[1735298914849,8.43155894,190.92,190.84,11.61155894]
[1735298915061,8.43155894,190.92,190.86,8.43155894]
[1735298915561,8.43155894,190.92,190.88,2.6228]
[1735298916757,8.43155894,190.92,190.86,8.43155894]
[1735298918159,11.05405894,190.92,190.87,2.6231]
[1735298918361,8.43155894,190.92,190.87,2.6231]
[1735298919559,2.6225,190.91,190.87,2.6231]
[1735298920964,7.26549692,190.93,190.89,2.6227]
[1735298921164,15.69705586,190.93,190.89,2.6227]
[1735298921365,8.43155894,190.93,190.89,2.6227]
[1735298921864,8.43155894,190.93,190.86,8.43155894]
[1735298922669,8.43155894,190.93,190.89,2.6227]
[1735298922869,8.43155894,190.93,190.86,8.43155894]
[1735298923261,8.43155894,190.93,190.88,2.6229]
[1735298923467,8.43155894,190.93,190.86,8.43155894]
[1735298924568,8.43155894,190.93,190.91,2.6225]
[1735298924964,37.553428,190.95,190.91,2.6225]
[1735298925158,37.553428,190.95,190.92,2.6224]
[1735298925358,29.12186906,190.95,190.89,3.18]
[1735298926370,11.51715894,190.96,190.89,3.18]
[1735298927169,3.0856,190.96,190.92,2.6223]
[1735298927367,11.51715894,190.96,190.92,2.6223]
[1735298928264,11.51715894,190.96,190.89,3.18]
[1735298928465,11.51715894,190.96,190.93,2.6222]
[1735298930573,18.78265586,190.96,190.93,2.6222]
[1735298930775,7.26549692,190.96,190.95,2.622]
[1735298931169,7.26549692,190.96,190.92,8.43155894]
[1735298931469,7.26549692,190.96,190.93,2.6222]
[1735298931775,29.12186906,190.98,190.93,2.6222]
[1735298932776,29.12186906,190.98,190.92,8.43155894]
[1735298933073,41.93585001,190.98,190.94,2.6221]
[1735298933477,41.93585001,190.98,190.92,11.05385894]
[1735298933669,41.93585001,190.98,190.92,8.43155894]
[1735298934478,41.93585001,190.98,190.93,2.6221]
[1735298934976,7.26549692,190.97,190.93,2.6221]
[1735298935778,41.93585001,190.98,190.93,2.6221]
[1735298936472,20.07947787,190.98,190.93,2.6221]
[1735298936678,7.26549692,190.98,190.97,2.6217]
[1735298937474,7.26549692,191.0,190.97,2.6217]
[1735298938778,7.26549692,191.0,190.94,14.23355894]
[1735298938969,15.69705586,191.0,190.94,14.23355894]
[1735298939174,15.69705586,191.0,190.94,11.61155894]
[1735298939669,50.36093126,191.0,190.94,11.61155894]
[1735298940276,7.26549692,190.99,190.94,11.61155894]
[1735298940472,7.26549692,190.99,190.95,2.6219]
[1735298941071,7.26549692,190.99,190.94,3.18]
[1735298941571,29.12186906,190.99,190.94,3.18]
[1735298941770,29.12186906,190.99,190.94,5.8021]
[1735298942370,41.92538142,190.99,190.94,14.23365894]
[1735298943975,41.92538142,190.99,190.94,11.61155894]
[1735298944172,41.92538142,190.99,190.96,2.6217]
[1735298944375,7.26549692,190.99,190.96,2.6217]
[1735298945379,31.74296906,191.02,190.96,2.6217]
[1735298946379,9.88659692,191.02,190.96,2.6217]
[1735298946580,2.6212,191.01,190.96,2.6217]
[1735298946780,8.43155894,191.01,190.94,11.61155894]
[1735298947183,2.6213,191.0,190.94,11.61155894]
[1735298947684,2.6213,191.0,190.95,2.622]
[1735298947885,2.6213,191.0,190.94,11.61155894]
[1735298948283,2.6213,191.0,190.94,14.23355894]
[1735298948481,31.74316906,191.0,190.94,14.23355894]
[1735298948681,29.12186906,191.0,190.95,2.622]
[1735298950283,7.26549692,190.99,190.95,2.622]
[1735298951989,29.12186906,190.99,190.95,2.622]
[1735298953085,41.92090927,190.99,190.95,2.622]
[1735298953286,41.92090927,190.99,190.96,2.6218]
[1735298953483,41.92090927,190.99,190.94,11.61155894]
[1735298953689,41.92090927,190.99,190.98,8.43155894]
[1735298953882,41.92090927,190.99,190.98,11.05315894]
[1735298954084,7.26549692,190.99,190.98,11.05315894]
[1735298955286,7.26549692,190.99,190.98,2.6216]
[1735298955486,8.43155894,191.02,190.98,2.6216]
[1735298955692,8.43155894,191.02,190.96,2.6217]
[1735298955989,8.43155894,191.0,190.96,2.6217]
[1735298956187,29.12186906,190.99,190.96,2.6217]
[1735298956382,29.12186906,190.99,190.95,2.622]
[1735298957284,41.92826658,190.99,190.96,2.6218]
[1735298958386,29.12186906,190.98,190.96,2.6218]
[1735298959590,29.12186906,190.98,190.94,11.61155894]
[1735298959891,29.12186906,190.98,190.97,2.6217]
[1735298960096,7.26549692,190.99,190.96,8.43155894]
[1735298960288,7.26549692,190.99,190.98,2.6216]
[1735298961192,29.12186906,191.0,190.99,2.6214]
[1735298962093,20.07189444,191.01,190.99,2.6214]
[1735298962993,41.92826658,191.01,190.99,2.6214]
[1735298963791,7.26549692,191.0,190.99,2.6214]
[1735298964192,7.26549692,191.0,190.98,2.6215]
[1735298965091,29.12186906,191.0,190.98,2.6215]
[1735298966685,7.26549692,191.0,190.98,2.6215]
[1735298968193,7.26549692,190.99,190.98,2.6215]
[1735298968997,7.26549692,190.99,190.94,11.61155894]
[1735298969292,7.26549692,190.99,190.96,2.6218]
[1735298970488,7.26549692,190.98,190.95,2.6219]
[1735298971391,7.26549692,190.97,190.95,2.6219]
[1735298971890,7.26549692,190.97,190.84,1.85256855]
[1735298972097,11.69455894,190.96,190.89,8.43155894]
[1735298972286,8.43155894,190.94,190.87,8.43155894]
[1735298972593,8.43155894,190.92,190.87,11.05465894]
[1735298973394,7.26549692,190.91,190.87,11.05465894]
[1735298973900,7.26549692,190.91,190.88,2.6228]
[1735298975290,58.41581601,190.93,190.88,2.6228]
[1735298975291,41.94562673,190.93,190.88,2.6228]
[1735298977201,7.26549692,190.93,190.88,2.6228]
[1735298979298,7.26549692,190.93,190.87,11.59155894]
[1735298979499,7.26549692,190.93,190.89,2.6228]
[1735298982702,37.553428,190.94,190.89,2.6228]
[1735298983203,37.553428,190.94,190.87,11.59155894]
[1735298983507,29.12186906,190.94,190.89,8.43155894]
[1735298984201,29.12186906,190.94,190.91,2.6224]
[1735298984398,37.553428,190.94,190.87,11.59155894]
[1735298984803,40.175528,190.94,190.87,14.21445894]
[1735298985305,40.175528,190.94,190.88,2.6229]
[1735298985601,11.05365894,190.94,190.88,2.6229]
[1735298986404,8.43155894,190.94,190.9,2.6226]
[1735298987104,8.43155894,190.94,190.88,3.16]
[1735298987300,8.43155894,190.94,190.91,2.6224]
[1735298987509,40.816428,190.96,190.91,2.6224]
[1735298987808,7.26549692,190.95,190.91,2.6224]
[1735298988514,10.52849692,190.96,190.89,8.43155894]
[1735298988716,18.96005586,190.96,190.93,2.6222]
[1735298989217,11.69455894,190.96,190.93,2.6222]
[1735298990915,3.263,190.96,190.95,2.622]
[1735298992313,3.263,190.96,190.94,2.6221]
[1735298992511,3.263,190.96,190.89,8.43155894]
[1735298993512,3.263,190.96,190.92,2.6223]
[1735298996121,3.263,190.96,190.91,8.43155894]
[1735298996523,3.263,190.96,190.93,2.6222]
[1735298997225,3.263,190.96,190.88,3.16]
[1735298997518,8.43155894,190.95,190.88,11.59155894]
[1735298997718,11.05355894,190.95,190.9,2.6226]
[1735298997913,11.05355894,190.95,190.88,3.16]
[1735298998119,11.05355894,190.95,190.88,11.59155894]
[1735298998419,8.43155894,190.95,190.88,11.59155894]
[1735298999123,15.69705586,190.95,190.88,11.59155894]
[1735298999315,7.26549692,190.95,190.93,2.6222]
[1735299000221,3.263,190.96,190.93,2.6222]
[1735299001112,10.52849692,190.96,190.92,2.6224]
[1735299001823,7.26549692,190.95,190.92,2.6224]
[1735299002726,7.26549692,190.95,190.89,8.43155894]
[1735299002917,7.26549692,190.95,190.91,2.6225]
[1735299003113,7.26549692,190.95,190.89,8.43155894]
[1735299003319,7.26549692,190.95,190.91,2.6224]
[1735299004615,41.95323382,190.95,190.92,2.6223]
[1735299005722,7.26549692,190.94,190.92,2.6223]
[1735299007221,7.26549692,190.94,190.9,5.7825]
[1735299008026,7.26549692,190.94,190.9,2.6225]
[1735299008225,7.26549692,190.94,190.91,2.6225]
[1735299008827,7.26549692,190.94,190.92,2.6224]
[1735299009028,15.69705586,190.94,190.87,8.43155894]
[1735299009220,18.31915586,190.94,190.88,3.16]
[1735299009416,8.43155894,190.94,190.88,3.16]
[1735299009624,8.43155894,190.94,190.89,2.6228]
[1735299009926,44.57523382,190.95,190.88,3.16]
[1735299010126,8.43155894,190.93,190.87,8.43155894]
[1735299010324,8.43155894,190.91,190.85,11.59155894]
[1735299010822,8.43155894,190.91,190.87,2.623]
[1735299011023,8.43155894,190.91,190.85,11.59155894]
[1735299011424,37.553428,190.91,190.85,11.59155894]
[1735299011625,29.12186906,190.91,190.88,2.6228]
[1735299012029,29.12186906,190.91,190.87,8.43155894]
[1735299012230,7.26549692,190.91,190.87,8.43155894]
[1735299012426,7.26549692,190.91,190.89,8.43155894]
[1735299013333,29.12186906,190.93,190.9,2.6227]
[1735299013831,8.43155894,190.92,190.87,8.43155894]
[1735299014128,8.43155894,190.92,190.85,11.59155894]
[1735299014528,7.26549692,190.93,190.89,2.6227]
[1735299014731,7.26549692,190.93,190.87,8.43155894]
[1735299015229,7.26549692,190.91,190.87,8.43155894]
[1735299015734,7.26549692,190.91,190.89,2.6227]
[1735299016025,7.26549692,190.91,190.85,3.16]
[1735299016026,8.43155894,190.92,190.85,11.59155894]
[1735299016431,8.43155894,190.92,190.87,2.6229]
[1735299016729,37.553428,190.92,190.87,2.6229]
[1735299017629,41.96901999,190.91,190.87,2.6229]
[1735299017930,8.43155894,190.9,190.83,3.16]
[1735299018328,15.69705586,190.9,190.83,3.16]
[1735299019131,7.26549692,190.89,190.83,3.16]
[1735299019631,7.26549692,190.89,190.85,2.6233]
[1735299020222,37.553428,190.9,190.85,2.6233]
[1735299022129,15.69705586,190.9,190.85,2.6233]
[1735299022734,7.26549692,190.9,190.84,8.43155894]
[1735299022936,7.26549692,190.9,190.86,8.43155894]
[1735299024236,20.09808237,190.92,190.86,8.43155894]
[1735299024638,20.09808237,190.92,190.88,8.43155894]
[1735299024831,20.09808237,190.92,190.88,11.59155894]
[1735299025229,7.26549692,190.92,190.88,11.59155894]
[1735299026137,37.553428,190.95,190.91,2.6224]
[1735299027138,15.69705586,190.95,190.91,2.6224]
[1735299027534,15.69705586,190.95,190.9,2.6226]
[1735299028038,7.26549692,190.94,190.9,2.6226]
[1735299029639,7.26549692,190.94,190.89,2.6228]
[1735299029831,7.26549692,190.94,190.88,11.59155894]
[1735299030036,8.43155894,190.93,190.88,3.16]
[1735299030239,11.05415894,190.91,190.86,3.16]
[1735299030741,11.05415894,190.91,190.84,11.05495894]
[1735299030742,8.43155894,190.89,190.84,14.21495894]
[1735299032641,8.43155894,190.89,190.85,2.6233]
[1735299034244,11.64195894,190.89,190.85,2.6233]
[1735299036239,11.64195894,190.89,190.84,3.16]
[1735299036240,3.2104,190.89,190.84,3.16]
[1735299036441,3.2104,190.89,190.86,2.6232]
[1735299037344,3.2104,190.89,190.84,3.16]
[1735299037545,3.2104,190.89,190.85,2.6233]
[1735299038447,11.64195894,190.89,190.85,2.6233]
[1735299038850,8.43155894,190.87,190.72,5.2501]
[1735299039150,8.43155894,190.87,190.8,8.43155894]
[1735299039347,8.43155894,190.87,190.8,11.59155894]
[1735299039852,15.69705586,190.87,190.8,11.59155894]
[1735299040250,15.69705586,190.87,190.82,2.6237]
[1735299040745,8.43155894,190.87,190.82,2.6237]
[1735299045250,7.26549692,190.88,190.84,8.43155894]
[1735299045452,7.26549692,190.88,190.8,3.16]
[1735299045649,8.43155894,190.87,190.8,11.59155894]
[1735299046550,15.69705586,190.87,190.8,11.59155894]
[1735299047552,15.69705586,190.87,190.82,2.6238]
[1735299048052,15.69705586,190.87,190.8,8.43155894]
[1735299048257,8.43155894,190.81,190.75,67.12360457]
[1735299048556,8.43155894,190.79,190.75,3.16]
[1735299050355,8.43155894,190.79,190.75,5.7847]
[1735299051257,8.43155894,190.79,190.74,2.6248]
[1735299053957,8.43155894,190.79,190.73,8.43155894]
[1735299054160,8.43155894,190.79,190.75,2.6247]
[1735299054453,3.0708,190.8,190.75,8.43155894]
[1735299054654,3.0708,190.8,190.76,2.6245]
[1735299054857,3.0708,190.8,190.75,8.43155894]
[1735299055255,3.0708,190.8,190.77,2.6243]
[1735299059061,3.0708,190.8,190.79,2.6242]
[1735299059360,8.43155894,190.84,190.77,11.59155894]
[1735299060257,8.43155894,190.84,190.79,2.6242]
[1735299060565,3.3172,190.85,190.77,3.16]
[1735299060566,8.43155894,190.82,190.77,3.16]
[1735299060753,8.43155894,190.82,190.77,5.7843]
[1735299061153,8.43155894,190.82,190.77,3.16]
[1735299062560,8.43155894,190.82,190.78,2.6243]
[1735299063569,10.58269692,190.85,190.7,54.5]
[1735299063570,8.43155894,190.8,190.74,3.16]
[1735299063864,8.43155894,190.78,190.74,3.16]
[1735299064166,8.43155894,190.78,190.72,3.16]
[1735299064561,8.43155894,190.76,190.72,5.785]
[1735299065359,8.43155894,190.76,190.72,2.625]
[1735299067374,3.2823,190.77,190.72,8.43155894]
[1735299068178,3.2823,190.77,190.74,2.6247]
[1735299068374,3.2823,190.77,190.72,8.43155894]
[1735299068575,8.43155894,190.76,190.7,11.59155894]
[1735299069576,8.43155894,190.76,190.72,2.625]
[1735299070076,11.05615894,190.76,190.7,2.6254]
[1735299070577,3.2823,190.77,190.69,11.59155894]
[1735299070779,8.43155894,190.76,190.69,11.59155894]
[1735299070979,8.43155894,190.76,190.71,8.43155894]
[1735299071174,8.43155894,190.76,190.74,2.6248]
[1735299071377,3.2823,190.77,190.74,2.6248]
[1735299072473,3.2823,190.77,190.71,8.43155894]
[1735299072980,8.43155894,190.76,190.71,8.43155894]
[1735299073376,8.43155894,190.76,190.72,2.625]
[1735299073972,8.43155894,190.74,190.7,3.16]
[1735299074176,8.43155894,190.72,190.66,8.43155894]
[1735299074779,8.43155894,190.72,190.67,2.6257]
[1735299075077,8.43155894,190.72,190.66,8.43155894]
[1735299075277,8.43155894,190.72,190.67,2.6258]
[1735299075477,8.43155894,190.72,190.65,11.59155894]
[1735299076680,8.43155894,190.74,190.67,8.43155894]
[1735299076984,29.12186906,190.75,190.69,8.43155894]
[1735299077282,7.26549692,190.75,190.69,8.43155894]
[1735299077474,7.26549692,190.75,190.7,2.6253]
[1735299077672,7.26549692,190.75,190.69,8.43155894]
[1735299078075,7.26549692,190.75,190.72,2.6251]
[1735299078281,8.43155894,190.76,190.72,2.6251]
[1735299085081,8.43155894,190.76,190.69,11.59155894]
[1735299085884,8.43155894,190.76,190.73,2.6249]
[1735299088392,8.43155894,190.76,190.69,11.59155894]
[1735299089288,8.43155894,190.76,190.72,2.625]
[1735299090190,8.43155894,190.76,190.73,2.625]
[1735299090691,8.43155894,190.76,190.69,11.59155894]
[1735299090889,8.43155894,190.76,190.73,2.6249]
[1735299095194,8.43155894,190.76,190.72,2.6251]
[1735299095694,15.69705586,190.76,190.72,2.6251]
[1735299096492,37.553428,190.76,190.72,2.6251]
[1735299097394,8.43155894,190.76,190.72,2.6251]
[1735299097697,8.43155894,190.76,190.74,2.6248]
[1735299097900,10.54779692,190.77,190.74,2.6248]
[1735299098399,3.2823,190.77,190.74,2.6248]
[1735299098590,3.2823,190.77,190.71,8.43155894]
[1735299098792,3.2823,190.77,190.73,2.6249]
[1735299099595,32.40416906,190.77,190.73,2.6249]
[1735299102090,32.40416906,190.77,190.71,2.6251]
[1735299102091,8.43155894,190.76,190.71,2.6251]
[1735299102294,8.43155894,190.74,190.61,67.16524375]
[1735299102491,8.43155894,190.72,190.66,8.43155894]
[1735299102801,8.43155894,190.72,190.68,2.6256]
[1735299104706,8.43155894,190.72,190.67,2.6258]
[1735299104909,8.43155894,190.72,190.65,3.16]
[1735299105101,8.43155894,190.7,190.65,3.16]
[1735299105303,8.43155894,190.7,190.64,8.43155894]
[1735299105502,8.43155894,190.68,190.61,75.59680269]
[1735299105802,29.12186906,190.73,190.61,3.16]
[1735299105803,8.43155894,190.66,190.61,3.16]
[1735299105997,8.43155894,190.66,190.6,2.6267]
[1735299106200,8.43155894,190.64,190.59,11.59155894]
[1735299106394,8.43155894,190.62,190.59,3.16]
[1735299106598,8.43155894,190.62,190.56,14.21875894]
[1735299106798,8.43155894,190.6,190.53,29.00496346]
[1735299106998,8.43155894,190.6,190.54,11.59155894]
[1735299107195,8.43155894,190.6,190.54,3.16]
[1735299107904,8.43155894,190.56,190.51,3.16]
[1735299108306,8.43155894,190.54,190.49,8.43155894]
[1735299108506,8.43155894,190.56,190.49,8.43155894]
[1735299108907,8.43155894,190.58,190.53,8.43155894]
[1735299109107,8.43155894,190.58,190.53,11.59155894]
[1735299109304,8.43155894,190.58,190.53,3.16]
[1735299112302,8.43155894,190.56,190.53,3.16]
[1735299112509,8.43155894,190.56,190.49,11.59155894]
[1735299112807,8.43155894,190.54,190.49,3.16]
[1735299113699,8.43155894,190.54,190.49,5.7883]
[1735299114199,8.43155894,190.55,190.49,3.16]
[1735299115107,8.43155894,190.55,190.5,2.6281]
[1735299115410,8.43155894,190.53,190.49,3.16]
[1735299116405,8.43155894,190.53,190.48,2.6284]
[1735299116912,8.43155894,190.53,190.49,2.6283]
[1735299117205,8.43155894,190.55,190.49,8.43155894]
[1735299117713,1.5498,190.56,190.49,8.43155894]
[1735299117906,3.1253,190.59,190.51,8.43155894]
[1735299118101,3.1253,190.59,190.51,11.59155894]
[1735299118102,8.43155894,190.58,190.51,11.59155894]
[1735299118512,3.1253,190.59,190.55,2.6274]
[1735299118710,11.55685894,190.59,190.53,8.43155894]
[1735299119103,11.55685894,190.59,190.55,2.6274]
[1735299119506,8.43155894,190.61,190.56,3.16]
[1735299119810,3.2603,190.64,190.56,3.16]
[1735299120004,8.43155894,190.62,190.56,3.16]
[1735299120200,8.43155894,190.62,190.58,2.627]
[1735299120402,8.43155894,190.62,190.56,3.16]
[1735299121207,8.43155894,190.62,190.57,2.6271]
[1735299122209,8.43155894,190.62,190.58,2.627]
[1735299122409,3.2603,190.64,190.57,8.43155894]
[1735299122605,3.2603,190.64,190.59,8.43155894]
[1735299124416,3.2603,190.64,190.59,11.05835894]
[1735299124616,3.2603,190.64,190.59,8.43155894]
[1735299124815,3.2603,190.64,190.6,2.6268]
[1735299125018,8.43155894,190.67,190.59,8.43155894]
[1735299126815,2.626,190.66,190.59,8.43155894]
[1735299127118,8.43155894,190.65,190.59,8.43155894]
[1735299127416,8.43155894,190.65,190.59,11.05845894]
[1735299127615,8.43155894,190.63,190.57,8.43155894]
[1735299127818,8.43155894,190.63,190.57,3.16]
[1735299128706,8.43155894,190.63,190.57,11.59155894]
[1735299130216,8.43155894,190.65,190.59,8.43155894]
[1735299130416,8.43155894,190.67,190.59,8.43155894]
[1735299131416,11.05735894,190.67,190.61,2.6266]
[1735299137316,33.88726906,190.7,190.65,2.6261]
[1735299137521,42.318828,190.7,190.65,2.6261]
[1735299137721,42.318828,190.7,190.63,8.43155894]
[1735299138121,13.19695894,190.7,190.63,8.43155894]
[1735299139221,4.7654,190.7,190.65,8.43155894]
[1735299139623,13.19695894,190.7,190.62,11.59155894]
[1735299140123,15.82245894,190.7,190.63,2.6263]
[1735299140427,8.43155894,190.68,190.6,8.43155894]
[1735299140625,8.43155894,190.64,190.6,3.16]
[1735299140829,4.7654,190.7,190.6,11.59155894]
[1735299141027,13.19695894,190.7,190.62,8.43155894]
[1735299141324,4.7654,190.7,190.65,2.626]
[1735299141526,4.7654,190.7,190.66,8.43155894]
[1735299141527,3.1945,190.7,190.66,8.43155894]
[1735299142128,29.12186906,190.71,190.66,8.43155894]
[1735299142322,7.26549692,190.72,190.68,2.6256]
[1735299142523,7.26549692,190.72,190.68,8.43155894]
[1735299143125,7.26549692,190.72,190.7,2.6253]
[1735299143324,7.26549692,190.72,190.7,11.59155894]
[1735299143529,13.18055894,190.76,190.7,11.59155894]
[1735299143934,13.18055894,190.76,190.71,2.6253]
[1735299144729,15.80515894,190.76,190.69,3.16]
[1735299144928,8.43155894,190.72,190.69,3.16]
[1735299145124,8.43155894,190.7,190.63,8.43155894]
[1735299145333,8.43155894,190.68,190.62,5.7864]
[1735299145935,8.43155894,190.7,190.63,11.05795894]
[1735299146135,8.43155894,190.72,190.65,8.43155894]
[1735299146636,37.553428,190.72,190.67,2.6258]
[1735299146838,37.553428,190.72,190.65,8.43155894]
[1735299147034,37.553428,190.72,190.67,8.43155894]
[1735299147238,29.12186906,190.72,190.67,11.59155894]
[1735299147636,29.12186906,190.72,190.67,14.21735894]
[1735299147842,11.05655894,190.74,190.67,14.21735894]
[1735299148231,2.625,190.74,190.67,5.7858]
[1735299149138,2.625,190.74,190.68,2.6257]
[1735299151438,17.96700804,190.76,190.67,3.16]
[1735299151639,4.749,190.76,190.67,16.37800804]
[1735299152644,4.749,190.76,190.71,2.6251]
[1735299152843,4.749,190.76,190.67,16.37800804]
[1735299153448,29.12186906,190.78,190.7,13.21800804]
[1735299154047,90.16168507,190.8,190.73,2.6249]
[1735299154347,31.74586906,190.8,190.73,5.7849]
[1735299154950,7.26549692,190.8,190.73,3.16]
[1735299155241,7.26549692,190.8,190.73,16.37800804]
[1735299155636,7.26549692,190.8,190.77,2.6244]
[1735299156251,1.529,190.81,190.77,2.6244]
[1735299158149,7.26549692,190.82,190.78,3.16]
[1735299158749,7.26549692,190.82,190.8,2.624]
[1735299158949,7.26549692,190.82,190.78,3.16]
[1735299159254,7.26549692,190.82,190.79,13.21800804]
[1735299159548,8.87569692,190.86,190.82,2.6237]
[1735299159746,8.87569692,190.86,190.79,13.21800804]
[1735299159950,8.87569692,190.86,190.83,2.6236]
[1735299160353,1.6102,190.86,190.83,2.6236]
[1735299160647,11.51439692,190.9,190.83,5.7836]
[1735299160848,13.12459692,190.9,190.83,5.7836]
[1735299161644,5.8591,190.9,190.83,5.7836]
[1735299163042,3.2364,190.9,190.85,2.6233]
[1735299164052,1.6102,190.9,190.85,2.6233]
[1735299164542,1.6102,190.9,190.87,2.623]
[1735299164943,2.6226,190.91,190.83,3.16]
[1735299165149,1.6853,190.92,190.83,5.7836]
[1735299165348,1.6853,190.92,190.83,3.16]
[1735299166557,2.6225,190.91,190.84,2.6235]
[1735299167053,1.6853,190.92,190.83,3.16]
[1735299167454,1.6119,190.93,190.85,13.21800804]
[1735299167956,1.6119,190.93,190.88,2.6229]
[1735299168153,1.6119,190.93,190.89,3.14]
[1735299168357,1.6119,190.93,190.9,2.6226]
[1735299169057,1.6119,190.93,190.89,3.14]
[1735299171546,1.6119,190.93,190.6,126.98626114]
[1735299171755,1.6119,190.93,190.8,13.21800804]
[1735299172056,13.21800804,190.91,190.81,3.14]
[1735299172253,1.6119,190.93,190.79,2.6241]
[1735299172254,13.21800804,190.88,190.79,2.6241]
[1735299172455,1.6668,190.87,190.79,3.14]
[1735299173257,4.29,190.87,190.8,2.624]
[1735299173859,1.6668,190.87,190.79,3.14]
[1735299174663,1.6668,190.87,190.81,2.6238]
[1735299174861,1.6668,190.87,190.79,3.14]
[1735299175360,1.6668,190.87,190.83,2.6235]
[1735299175958,1.6668,190.87,190.79,3.14]
[1735299175959,1.6668,190.87,190.84,2.6234]
[1735299176156,1.6388,190.9,190.84,3.14]
[1735299176562,1.6119,190.93,190.87,2.6231]
[1735299177554,1.6119,190.93,190.88,2.6229]
[1735299177958,1.6119,190.93,190.89,3.14]
[1735299178959,2.6224,190.92,190.89,3.14]
[1735299179159,1.6119,190.93,190.87,3.14]
[1735299180057,2.6225,190.92,190.87,3.14]
[1735299180661,1.6119,190.93,190.87,3.14]
[1735299181457,7.26549692,190.95,190.88,13.21800804]
[1735299181866,29.12186906,190.98,190.88,13.21800804]
[1735299182262,31.74346906,190.98,190.91,2.6224]
[1735299182660,2.6216,190.98,190.91,2.6224]
[1735299182863,2.6216,190.98,190.92,3.14]
[1735299183963,13.21800804,190.97,190.89,2.6227]
[1735299184164,13.21800804,190.97,190.89,5.7627]